bitfinex/quotes_SOLUSD_20250802
["timestamp","ask_amount","ask_price","bid_price","bid_amount"]
[1754117695930,44.16,162.91,162.89,18.12459487]
[1754117696350,44.16,162.9,162.89,18.12459487]
[1754117696650,44.16,162.9,162.87,18.83459487]
[1754117696870,18.12459487,162.88,162.82,0.91]
[1754117697081,44.16,162.87,162.84,18.12459487]
[1754117697253,44.16,162.87,162.86,18.12459487]
[1754117697458,44.16,162.87,162.86,18.83459487]
[1754117697800,44.16,162.89,162.86,18.83459487]
[1754117698847,44.16,162.89,162.86,18.12459487]
[1754117699182,44.16,162.89,162.87,18.83459487]
[1754117699342,44.16,162.89,162.88,0.71]
[1754117699677,44.16,162.91,162.88,18.83459487]
[1754117699878,44.16,162.91,162.89,0.71]
[1754117700080,44.16,162.91,162.9,18.12459487]
[1754117700376,44.16,162.91,162.9,18.83459487]
[1754117700585,0.03,162.94,162.9,18.83459487]
[1754117700909,0.03,162.96,162.93,18.12459487]
[1754117701198,0.03,162.96,162.95,34.90927884]
[1754117701349,0.03,162.96,162.93,0.65]
[1754117701863,0.03,162.96,162.92,0.65]
[1754117702042,0.03,162.96,162.95,18.12459487]
[1754117702466,0.03,162.96,162.95,18.77459487]
[1754117703167,0.03,162.96,162.95,18.12459487]
[1754117703349,0.03,162.96,162.93,0.65]
[1754117703541,0.03,162.96,162.93,18.77459487]
[1754117703964,0.03,162.96,162.95,18.12459487]
[1754117704581,0.03,162.96,162.95,18.77459487]
[1754117704963,0.03,162.96,162.95,18.12459487]
[1754117705158,0.03,162.96,162.93,0.65]
[1754117705159,0.03,162.96,162.94,18.12459487]
[1754117705389,0.03,162.96,162.93,18.12459487]
[1754117705691,0.03,162.96,162.95,18.12459487]
[1754117705905,0.03,162.97,162.96,16.78468397]
[1754117706190,0.03,162.97,162.96,35.55927884]
[1754117706391,0.03,162.97,162.96,34.90927884]
[1754117706558,0.03,162.97,162.96,35.55927884]
[1754117708168,0.03,163.03,163.0,16.78468397]
[1754117708483,0.03,163.05,163.03,16.78468397]
[1754117708681,0.03,163.05,163.04,18.12459487]
[1754117708885,0.03,163.05,163.04,18.77459487]
[1754117709572,0.03,163.05,163.04,20.58227687]
[1754117709886,0.03,163.05,163.04,18.12459487]
[1754117710502,0.03,163.05,163.03,18.12459487]
[1754117710968,0.03,163.05,163.01,0.65]
[1754117711169,0.03,163.05,163.02,18.12459487]
[1754117711366,0.03,163.05,163.01,18.12459487]
[1754117711767,18.12459487,163.03,162.97,18.439411]
[1754117712008,0.03,163.05,162.99,18.12459487]
[1754117712171,0.03,163.05,163.04,18.12459487]
[1754117712586,0.03,163.05,163.03,18.77459487]
[1754117712892,18.12459487,163.04,162.99,18.12459487]
[1754117713095,18.12459487,163.04,162.99,18.77459487]
[1754117713284,18.12459487,163.04,163.0,18.12459487]
[1754117713479,18.56459487,163.04,162.99,18.77459487]
[1754117713678,18.12459487,163.03,162.98,18.12459487]
[1754117713884,62.22459487,163.04,162.98,18.77459487]
[1754117714276,62.22459487,163.04,162.99,18.12459487]
[1754117714684,44.1,163.04,163.0,18.77459487]
[1754117715182,44.1,163.04,163.0,0.65]
[1754117715384,62.22459487,163.04,163.0,0.65]
[1754117715590,62.22459487,163.04,162.99,18.12459487]
[1754117715810,44.1,163.04,163.0,18.12459487]
[1754117715988,18.15459487,163.05,163.03,18.12459487]
[1754117715989,0.03,163.05,163.03,18.12459487]
[1754117716178,0.03,163.05,163.04,18.77459487]
[1754117717606,0.03,163.05,163.01,0.65]
[1754117717776,0.03,163.05,163.03,18.12459487]
[1754117718501,0.03,163.05,163.04,18.12459487]
[1754117718691,0.03,163.05,163.04,18.77459487]
[1754117719908,0.03,163.05,163.04,18.12459487]
[1754117720297,0.03,163.05,163.03,18.12459487]
[1754117720481,0.03,163.05,163.02,18.12459487]
[1754117722201,0.44,163.04,162.98,18.77459487]
[1754117722393,18.12459487,163.03,162.98,18.77459487]
[1754117722799,18.56459487,163.03,162.98,18.77459487]
[1754117723113,18.56459487,163.03,162.96,0.65]
[1754117723407,18.56459487,163.03,162.98,18.12459487]
[1754117723620,18.12459487,162.99,162.94,18.77459487]
[1754117723904,18.12459487,163.01,162.96,18.12459487]
[1754117724126,26.0,163.03,162.98,18.12459487]
[1754117724280,26.0,163.03,162.99,18.77459487]
[1754117724685,26.0,163.03,162.99,18.12459487]
[1754117725016,26.0,163.03,163.0,0.65]
[1754117725221,44.12459487,163.03,162.97,0.65]
[1754117725508,44.12459487,163.03,162.98,18.12459487]
[1754117725709,44.12459487,163.03,162.98,18.77459487]
[1754117726004,18.12459487,163.02,162.97,18.12459487]
[1754117726302,0.03,163.05,162.99,18.12459487]
[1754117726489,0.03,163.05,163.03,18.12459487]
[1754117726690,0.03,163.05,163.04,18.77459487]
[1754117729117,0.03,163.05,163.04,35.55927884]
[1754117732581,0.03,163.05,163.04,38.01650784]
[1754117740800,0.03,163.05,163.04,20.58182387]
[1754117741013,0.03,163.05,163.04,18.12459487]
[1754117741406,0.03,163.05,163.04,18.78459487]
[1754117741991,0.03,163.05,163.04,35.56927884]
[1754117742391,0.03,163.05,163.04,61.56927884]
[1754117742635,0.1,163.07,163.04,61.56927884]
[1754117742636,0.1,163.07,163.06,26.0]
[1754117742930,0.1,163.07,163.06,88.16459487]
[1754117743227,0.1,163.07,163.06,88.82459487]
[1754117744324,0.1,163.07,163.06,105.60927884]
[1754117744518,0.1,163.07,163.06,108.06620584]
[1754117745300,0.1,163.07,163.06,108.67947702]
[1754117745519,0.1,163.07,163.06,108.06620584]
[1754117748007,0.1,163.07,163.06,114.19891772]
[1754117748212,0.1,163.07,163.06,108.06620584]
[1754117749707,0.1,163.07,163.06,89.94161097]
[1754117749898,0.1,163.07,163.06,108.06620584]
[1754117752813,0.1,163.07,163.06,20.58152187]
[1754117753012,0.1,163.07,163.06,18.12459487]
[1754117753329,0.1,163.07,163.06,62.14459487]
[1754117753638,0.54,163.07,163.05,62.14459487]
[1754117753941,0.54,163.07,163.04,62.14459487]
[1754117754238,0.54,163.07,163.03,62.14459487]
[1754117754429,0.54,163.07,163.03,44.02]
[1754117754740,0.54,163.07,163.03,62.14459487]
[1754117755301,0.44,163.06,163.03,62.14459487]
[1754117755529,0.1,163.07,163.03,62.20459487]
[1754117755530,0.44,163.05,163.03,62.20459487]
[1754117755719,0.44,163.04,163.03,0.06]
[1754117756235,18.56459487,163.04,163.03,0.06]
[1754117758337,0.44,163.04,163.03,0.06]
[1754117760008,18.56459487,163.04,163.03,0.06]
[1754117760621,26.0,163.01,163.0,0.06]
[1754117760819,44.12459487,163.01,163.0,0.06]
[1754117761020,44.50459487,163.01,163.0,0.06]
[1754117763145,0.38,163.01,163.0,0.06]
[1754117763827,0.38,163.03,163.0,0.06]
[1754117764337,26.0,163.03,163.0,0.06]
[1754117764645,18.12459487,163.04,163.0,0.06]
[1754117764942,0.38,163.03,163.0,0.06]
[1754117765138,0.38,163.02,163.0,0.06]
[1754117765642,18.12459487,163.02,163.0,0.06]
[1754117765855,18.50459487,163.01,163.0,0.06]
[1754117767239,35.28927884,163.01,163.0,0.06]
[1754117767450,61.28927884,163.01,163.0,0.06]
[1754117767817,41.4238718,163.01,163.0,0.06]
[1754117768439,16.78468397,162.97,162.93,0.06]
[1754117768649,18.12459487,162.94,162.93,0.06]
[1754117769019,18.50459487,162.94,162.93,0.06]
[1754117773054,18.12459487,162.94,162.93,0.06]
[1754117773531,26.0,162.95,162.93,0.06]
[1754117773886,2.460554,163.0,162.94,18.12459487]
[1754117774153,18.12459487,163.04,162.99,18.12459487]
[1754117774347,44.04,163.03,162.99,18.80459487]
[1754117774745,62.16459487,163.03,162.94,18.324595]
[1754117774974,18.50459487,163.02,162.97,18.12459487]
[1754117775130,18.50459487,163.02,162.95,0.68]
[1754117775131,0.38,163.01,162.95,0.68]
[1754117775444,0.38,163.01,162.96,18.12459487]
[1754117775643,18.12459487,163.02,162.96,18.12459487]
[1754117775843,18.12459487,163.02,162.96,18.80459487]
[1754117776055,18.12459487,163.02,162.97,18.12459487]
[1754117776252,18.12459487,163.02,162.97,18.80459487]
[1754117776551,62.54459487,163.03,162.98,18.12459487]
[1754117776739,62.54459487,163.03,162.98,18.80459487]
[1754117777445,44.04,163.03,162.98,18.12459487]
[1754117777650,44.04,163.03,162.99,18.80459487]
[1754117777854,44.04,163.03,163.0,0.68]
[1754117779688,44.04,163.03,163.01,0.68]
[1754117779884,44.04,163.03,163.01,18.80459487]
[1754117780769,44.04,163.03,163.01,0.68]
[1754117781876,44.04,163.03,163.02,18.80459487]
[1754117783798,44.04,163.03,162.97,18.441678]
[1754117783967,44.04,163.03,163.01,18.12459487]
[1754117784171,44.04,163.03,163.0,18.80459487]
[1754117784583,44.04,163.03,163.01,18.80459487]
[1754117784795,44.04,163.03,163.02,0.68]
[1754117785085,44.04,163.03,163.0,18.12459487]
[1754117785283,44.04,163.03,163.0,0.68]
[1754117785467,44.04,163.03,163.0,18.12459487]
[1754117785905,62.54459487,163.03,162.98,0.68]
[1754117786062,62.54459487,163.03,162.98,18.80459487]
[1754117786375,44.04,163.03,163.0,18.12459487]
[1754117786580,44.04,163.03,163.01,0.68]
[1754117786776,44.04,163.03,163.01,18.80459487]
[1754117787294,44.04,163.03,163.01,0.68]
[1754117787987,44.05,163.05,163.01,18.80459487]
[1754117788186,44.05,163.05,163.02,0.68]
[1754117788574,44.05,163.05,163.01,18.12459487]
[1754117788978,18.12459487,163.04,162.99,18.12459487]
[1754117789496,18.12459487,163.04,163.0,18.80459487]
[1754117789696,62.55459487,163.05,163.0,18.80459487]
[1754117790004,18.50459487,163.04,162.99,18.12459487]
[1754117790359,18.12459487,163.03,162.98,18.80459487]
[1754117790568,18.50459487,163.03,162.98,0.68]
[1754117790799,18.50459487,163.03,162.98,18.80459487]
[1754117790979,18.12459487,163.04,162.99,18.79459487]
[1754117791473,44.43,163.05,162.99,18.79459487]
[1754117791788,62.55459487,163.05,163.0,18.12459487]
[1754117791974,44.05,163.05,163.01,18.79459487]
[1754117792175,44.05,163.05,163.02,18.79459487]
[1754117792382,44.05,163.05,163.03,0.67]
[1754117792904,44.05,163.05,163.03,18.79459487]
[1754117793075,44.05,163.05,163.04,18.79459487]
[1754117793076,0.03,163.05,163.04,18.79459487]
[1754117795180,0.03,163.05,163.04,18.12459487]
[1754117795380,0.03,163.05,163.03,18.12459487]
[1754117795974,0.03,163.05,163.04,18.12459487]
[1754117796792,0.03,163.05,163.02,18.79459487]
[1754117798181,0.03,163.05,163.04,18.12459487]
[1754117798783,0.03,163.05,163.04,18.79459487]
[1754117800996,0.03,163.05,163.03,18.12459487]
[1754117801500,0.03,163.05,163.04,18.79459487]
[1754117801899,0.1,163.11,163.05,16.78468397]
[1754117802101,0.1,163.11,163.1,18.12459487]
[1754117802491,0.1,163.11,163.1,18.79459487]
[1754117803084,0.1,163.11,163.1,35.57927884]
[1754117806602,0.1,163.11,163.1,18.79459487]
[1754117808195,0.1,163.11,163.1,21.25137087]
[1754117808604,0.1,163.11,163.1,3.126776]
[1754117809812,0.1,163.11,163.1,38.03605484]
[1754117811609,0.1,163.11,163.1,21.25137087]
[1754117812988,0.1,163.11,163.1,20.58137087]
[1754117814200,0.1,163.11,163.1,21.25137087]
[1754117817428,0.1,163.11,163.1,38.03605484]
[1754117818400,0.1,163.11,163.1,81.99605484]
[1754117818732,0.1,163.11,163.1,65.21137087]
[1754117818924,0.1,163.11,163.1,58.37891941]
[1754117819225,0.1,163.11,163.1,86.45574679]
[1754117820317,0.1,163.11,163.1,63.87145997]
[1754117820615,0.1,163.11,163.1,86.45574679]
[1754117820806,0.1,163.11,163.1,75.16360338]
[1754117822914,0.1,163.11,163.1,86.45574679]
[1754117825134,0.1,163.11,163.1,75.16360338]
[1754117825308,0.1,163.11,163.1,2.456776]
[1754117825495,0.64,163.11,163.1,11.29214341]
[1754117826010,0.1,163.11,163.1,11.29214341]
[1754117826213,0.64,163.11,163.1,11.29214341]
[1754117827696,0.1,163.11,163.1,11.29214341]
[1754117827996,0.64,163.11,163.1,11.29214341]
[1754117828516,0.64,163.11,163.09,0.06]
[1754117828706,0.54,163.1,163.09,0.06]
[1754117828897,11.83214341,163.1,163.09,0.06]
[1754117829098,0.54,163.1,163.09,0.06]
[1754117829299,0.1,163.11,163.09,0.06]
[1754117829826,0.54,163.1,163.09,0.06]
[1754117831832,157.93214341,163.1,163.09,0.06]
[1754117832706,11.83214341,163.1,163.09,0.06]
[1754117834402,0.54,163.1,163.09,0.06]
[1754117835014,11.39214341,163.11,163.09,0.06]
[1754117835401,11.83214341,163.1,163.09,0.06]
[1754117842436,11.29214341,163.1,163.09,0.06]
[1754117843637,37.83214341,163.1,163.09,0.06]
[1754117844448,26.0,163.1,163.09,0.06]
[1754117844616,37.29214341,163.1,163.09,0.06]
[1754117844819,37.83214341,163.1,163.09,0.06]
[1754117848927,54.61682738,163.1,163.09,0.06]
[1754117849935,98.55682738,163.1,163.09,0.06]
[1754117850841,72.55682738,163.1,163.09,0.06]
[1754117852524,61.26468397,163.1,163.09,0.06]
[1754117852828,72.55682738,163.1,163.09,0.06]
[1754117853030,11.29214341,163.1,163.09,0.06]
[1754117853231,81.23214341,163.1,163.09,0.06]
[1754117854044,81.23214341,163.1,163.09,0.77]
[1754117854243,81.23214341,163.1,163.09,0.06]
[1754117855832,98.55682738,163.1,163.09,0.06]
[1754117856840,54.61682738,163.1,163.09,0.06]
[1754117857039,98.55682738,163.1,163.09,0.06]
[1754117857234,109.84897079,163.1,163.09,0.06]
[1754117857451,115.98017863,163.1,163.09,0.06]
[1754117858547,120.01753392,163.1,163.07,0.06]
[1754117858747,28.07682738,163.08,163.07,0.06]
[1754117859069,72.01682738,163.08,163.07,0.06]
[1754117859362,72.55682738,163.08,163.07,0.06]
[1754117863371,72.01682738,163.08,163.07,0.06]
[1754117863665,72.55682738,163.08,163.07,0.06]
[1754117864052,72.01682738,163.08,163.07,0.06]
[1754117864955,11.29214341,163.08,163.07,0.06]
[1754117865267,55.23214341,163.08,163.07,0.77]
[1754117865483,81.23214341,163.08,163.07,0.77]
[1754117865687,55.23214341,163.08,163.07,0.77]
[1754117865856,0.1,163.11,163.07,12.06214341]
[1754117866052,43.94,163.1,163.08,12.00214341]
[1754117866255,44.04,163.11,163.09,0.71]
[1754117868366,0.1,163.11,163.09,0.71]
[1754117868668,0.1,163.11,163.1,11.29214341]
[1754117868872,0.1,163.11,163.1,12.00214341]
[1754117870851,0.1,163.11,163.1,0.71]
[1754117873490,146.2,163.11,163.07,12.06214341]
[1754117873676,43.92,163.1,163.08,0.71]
[1754117874875,43.92,163.1,163.09,0.71]
[1754117875987,146.2,163.11,163.09,12.00214341]
[1754117876170,146.2,163.11,163.1,11.29214341]
[1754117876372,146.2,163.11,163.1,12.00214341]
[1754117877961,0.1,163.11,163.1,12.00214341]
[1754117884866,0.1,163.11,163.1,11.29214341]
[1754117885058,0.1,163.11,163.08,0.67]
[1754117885059,0.1,163.11,163.09,11.29214341]
[1754117885660,0.1,163.11,163.07,0.06]
[1754117885874,11.39214341,163.11,163.07,0.06]
[1754117886555,11.93214341,163.11,163.09,0.06]
[1754117886756,0.1,163.11,163.09,0.06]
[1754117886980,0.1,163.11,163.09,0.73]
[1754117889071,0.1,163.11,163.1,0.67]
[1754117890386,0.1,163.11,163.09,0.06]
[1754117891078,0.64,163.11,163.09,0.06]
[1754117891685,0.1,163.11,163.09,0.73]
[1754117891903,0.1,163.11,163.09,0.06]
[1754117892085,11.93214341,163.11,163.09,0.06]
[1754117892257,43.9,163.1,163.09,0.06]
[1754117894364,55.73214341,163.1,163.09,0.06]
[1754117895395,72.51682738,163.1,163.09,0.06]
[1754117896571,43.9,163.1,163.09,0.06]
[1754117896761,55.19214341,163.1,163.09,0.06]
[1754117897204,0.1,163.11,163.09,0.73]
[1754117897374,43.88,163.1,163.09,0.73]
[1754117898178,43.88,163.1,163.09,12.02214341]
[1754117898875,0.1,163.11,163.09,0.73]
[1754117899308,0.1,163.11,163.09,0.06]
[1754117900209,81.17214341,163.1,163.09,0.06]
[1754117900506,81.71214341,163.1,163.09,0.06]
[1754117901073,70.42,163.1,163.09,0.06]
[1754117901295,81.71214341,163.1,163.09,0.06]
[1754117902775,98.49682738,163.1,163.09,0.06]
[1754117906669,87.20468397,163.1,163.09,0.06]
[1754117906870,98.49682738,163.1,163.09,0.06]
[1754117907494,102.54228001,163.1,163.09,0.06]
[1754117907693,113.83442342,163.1,163.09,0.06]
[1754117908501,119.96563126,163.1,163.09,0.06]
[1754117911690,146.04,163.08,163.07,0.06]
[1754117912008,201.21214341,163.08,163.07,0.06]
[1754117912211,201.75214341,163.08,163.07,0.06]
[1754117912705,201.21214341,163.08,163.07,0.06]
[1754117913005,206.70468397,163.08,163.07,0.73]
[1754117913304,217.99682738,163.08,163.07,0.06]
[1754117914832,217.99682738,163.08,163.07,0.73]
[1754117915114,217.99682738,163.08,163.07,0.06]
[1754117917199,222.57736373,163.08,163.07,0.06]
[1754117917808,54.07682738,163.06,163.05,0.06]
[1754117918109,71.95682738,163.06,163.05,0.06]
[1754117918323,72.49682738,163.06,163.05,0.06]
[1754117918509,76.53505681,163.06,163.05,0.06]
[1754117919219,82.66776869,163.06,163.05,0.06]
[1754117920819,85.6708816,163.06,163.05,0.06]
[1754117921404,90.59236865,163.06,163.05,0.06]
[1754117924626,90.05236865,163.06,163.05,0.06]
[1754117925909,90.59236865,163.06,163.05,0.06]
[1754117927125,90.05236865,163.06,163.05,0.06]
[1754117927823,90.59236865,163.06,163.05,0.06]
[1754117928399,54.07682738,163.0,162.99,0.06]
[1754117928724,97.93682738,163.0,162.99,0.06]
[1754117929099,97.93682738,163.0,162.99,0.73]
[1754117929405,69.86,163.0,162.99,0.73]
[1754117929837,81.15214341,163.0,162.99,0.73]
[1754117930253,26.0,163.0,162.99,0.73]
[1754117930457,43.86,163.02,162.99,0.73]
[1754117930645,146.1,163.04,162.99,0.73]
[1754117930846,146.1,163.04,163.03,11.29214341]
[1754117930847,189.24,163.04,163.03,11.29214341]
[1754117931145,189.24,163.04,163.03,11.96214341]
[1754117931647,145.38,163.04,163.03,11.96214341]
[1754117933256,145.38,163.04,163.03,0.67]
[1754117934946,145.38,163.04,163.03,11.96214341]
[1754117935247,144.66,163.04,163.03,11.96214341]
[1754117935820,43.86,163.07,163.03,11.96214341]
[1754117936152,43.86,163.07,163.06,11.29214341]
[1754117936446,43.86,163.08,163.06,0.67]
[1754117936642,43.86,163.08,163.06,11.96214341]
[1754117936849,43.86,163.08,163.07,0.67]
[1754117940351,0.03,163.1,163.07,11.96214341]
[1754117940553,43.87,163.1,163.08,11.96214341]
[1754117940859,43.87,163.1,163.09,0.67]
[1754117941850,43.87,163.1,163.07,11.96214341]
[1754117942055,43.87,163.1,163.06,11.29214341]
[1754117942239,43.87,163.1,163.06,11.96214341]
[1754117942624,44.56,163.1,163.06,11.96214341]
[1754117943025,43.87,163.1,163.06,11.96214341]
[1754117944347,144.66,163.09,163.06,11.96214341]
[1754117946372,43.84,163.08,163.06,11.96214341]
[1754117947145,43.84,163.08,163.06,0.67]
[1754117947455,43.84,163.08,163.06,11.29214341]
[1754117947837,43.84,163.08,163.05,11.29214341]
[1754117948131,43.84,163.08,163.04,11.29214341]
[1754117948132,0.69,163.07,163.04,11.29214341]
[1754117948336,44.53,163.06,163.02,11.96214341]
[1754117949135,43.84,163.06,163.02,11.96214341]
[1754117950352,43.84,163.06,163.02,0.67]
[1754117950660,43.84,163.06,163.02,11.96214341]
[1754117951047,44.53,163.06,163.02,11.96214341]
[1754117952268,43.84,163.06,163.03,11.96214341]
[1754117952762,43.84,163.06,163.04,11.29214341]
[1754117952937,0.03,163.08,163.05,11.96214341]
[1754117953139,43.85,163.08,163.06,11.29214341]
[1754117953774,43.85,163.08,163.06,11.96214341]
[1754117955380,0.03,163.08,163.06,11.96214341]
[1754117955872,44.51,163.07,163.04,11.29214341]
[1754117956163,0.69,163.06,163.02,11.29214341]
[1754117956365,43.82,163.05,163.02,11.29214341]
[1754117956560,44.51,163.05,163.02,11.29214341]
[1754117956941,0.69,163.04,163.0,11.35214341]
[1754117957136,0.69,163.04,163.0,12.02214341]
[1754117957343,0.69,163.04,163.01,11.29214341]
[1754117957543,43.82,163.05,163.01,11.29214341]
[1754117957947,44.51,163.05,163.01,11.29214341]
[1754117958246,43.82,163.05,163.02,11.96214341]
[1754117958955,43.82,163.05,163.02,11.29214341]
[1754117959551,43.82,163.05,163.03,11.96214341]
[1754117959757,43.82,163.05,163.03,0.67]
[1754117959962,43.82,163.05,163.03,11.96214341]
[1754117960159,43.82,163.05,163.03,11.29214341]
[1754117960656,144.66,163.06,163.03,11.29214341]
[1754117960856,189.17,163.06,163.03,11.29214341]
[1754117961766,189.17,163.06,163.01,0.67]
[1754117961974,189.17,163.06,163.03,11.29214341]
[1754117963453,0.69,163.05,163.02,11.29214341]
[1754117964454,188.48,163.06,163.02,11.29214341]
[1754117964855,189.17,163.06,163.02,11.29214341]
[1754117965463,43.82,163.05,163.02,11.29214341]
[1754117966753,43.82,163.05,163.03,11.29214341]
[1754117968265,44.51,163.05,163.03,11.29214341]
[1754117968685,0.69,163.04,163.02,11.29214341]
[1754117969571,43.82,163.05,163.02,11.29214341]
[1754117969779,43.82,163.05,163.03,11.29214341]
[1754117971450,44.49,163.05,163.02,11.29214341]
[1754117971649,44.49,163.05,163.02,11.35214341]
[1754117971853,43.82,163.05,163.02,11.35214341]
[1754117972060,0.67,163.04,163.02,11.35214341]
[1754117972581,43.82,163.05,163.02,0.06]
[1754117972880,0.67,163.03,163.02,0.06]
[1754117973263,43.82,163.05,163.02,0.06]
[1754117973784,44.49,163.05,163.02,0.06]
[1754117974268,44.49,163.05,163.02,11.35214341]
[1754117976571,0.67,163.04,163.02,11.35214341]
[1754117976780,43.82,163.05,163.03,11.29214341]
[1754117976981,188.49,163.06,163.04,11.29214341]
[1754117977280,144.69,163.06,163.05,11.29214341]
[1754117984167,0.03,163.06,163.05,11.29214341]
[1754117984370,0.03,163.06,163.05,11.97214341]
[1754117987974,0.03,163.06,163.05,11.29214341]
[1754117991000,0.7,163.06,163.05,11.29214341]
[1754117991903,0.7,163.06,163.03,12.652144]
[1754117992079,0.03,163.06,163.05,11.29214341]
[1754117992679,0.7,163.06,163.05,11.29214341]
[1754117993383,0.03,163.06,163.05,11.29214341]
[1754117993701,0.7,163.06,163.04,11.29214341]
[1754117993999,0.67,163.05,163.04,11.29214341]
[1754117994378,0.67,163.05,163.03,11.29214341]
[1754117994576,0.67,163.05,163.03,0.06]
[1754117994577,44.43,163.05,163.03,0.06]
[1754117995280,0.67,163.04,163.03,0.06]
[1754117997175,44.43,163.05,163.03,0.06]
[1754117997385,0.67,163.04,163.03,0.06]
[1754118000279,11.96214341,163.04,163.03,0.06]
[1754118000476,54.74682738,163.04,163.03,0.06]
[1754118000679,54.75682738,163.04,163.03,0.06]
[1754118000879,34.89029156,163.04,163.02,0.06]
[1754118001074,42.78468397,163.01,163.0,0.06]
[1754118001294,101.87894744,163.01,163.0,0.06]
[1754118001510,98.49682738,163.01,163.0,0.06]
[1754118002793,70.42,163.01,163.0,0.06]
[1754118003193,81.71214341,163.01,163.0,0.06]
[1754118003702,0.68,163.03,163.0,0.06]
[1754118003905,43.74,163.02,163.0,0.06]
[1754118004310,44.42,163.02,163.0,0.06]
[1754118005235,28.75682738,163.01,163.0,0.06]
[1754118006146,37.97214341,163.01,163.0,0.06]
[1754118006299,70.42,163.01,163.0,0.06]
[1754118006634,43.74,163.01,163.0,0.06]
[1754118008702,43.74,163.01,163.0,11.35214341]
[1754118009513,43.74,163.01,163.0,0.06]
[1754118010847,43.74,163.03,163.0,12.01214341]
[1754118011325,43.74,163.04,163.02,11.29214341]
[1754118013529,43.74,163.04,163.0,0.06]
[1754118013757,44.42,163.04,163.02,11.29214341]
[1754118014054,0.68,163.03,163.01,11.29214341]
[1754118014956,43.74,163.04,163.01,11.29214341]
[1754118015122,0.68,163.02,163.0,11.35214341]
[1754118015321,0.68,163.01,163.0,11.35214341]
[1754118015522,0.68,163.01,163.0,0.06]
[1754118015763,0.68,163.01,163.0,11.35214341]
[1754118016559,43.74,163.02,163.0,11.35214341]
[1754118016752,44.42,163.02,163.0,11.35214341]
[1754118017263,43.74,163.02,163.0,0.06]
[1754118018729,43.74,163.02,163.0,11.35214341]
[1754118018928,43.74,163.02,163.01,11.29214341]
[1754118019131,0.03,163.06,163.01,11.29214341]
[1754118019132,43.74,163.04,163.01,11.29214341]
[1754118019353,43.74,163.04,163.02,11.29214341]
[1754118019558,0.68,163.03,163.01,11.29214341]
[1754118020535,0.68,163.02,163.0,0.06]
[1754118020921,0.68,163.02,163.0,11.35214341]
[1754118021144,44.42,163.04,163.0,11.35214341]
[1754118021336,190.52,163.04,163.01,11.29214341]
[1754118021750,189.84,163.04,163.01,11.95214341]
[1754118022045,190.52,163.04,163.01,11.29214341]
[1754118022660,189.84,163.04,163.02,11.29214341]
[1754118022825,190.52,163.04,163.01,11.29214341]
[1754118023028,0.68,163.03,163.0,11.35214341]
[1754118023226,0.68,163.02,163.0,11.35214341]
[1754118023955,0.68,163.02,163.0,0.06]
[1754118024353,189.84,163.04,163.01,11.29214341]
[1754118024560,189.84,163.04,163.01,11.95214341]
[1754118024860,189.84,163.04,163.02,11.29214341]
[1754118027548,146.1,163.04,163.02,11.29214341]
[1754118030442,146.1,163.04,163.02,11.95214341]
[1754118030642,0.69,163.03,163.01,11.29214341]
[1754118031539,146.1,163.04,163.01,11.29214341]
[1754118031743,146.79,163.04,163.01,11.29214341]